[Event "Italian-ch Women 2022"]
[Site "Cagliari"]
[Date "2022.11.19"]
[Round "3.3"]
[White "Sedina, Elena"]
[Black "Brunello, Marina"]
[Result "0-1"]
[ECO "B51"]
[WhiteElo "2197"]
[BlackElo "2337"]
[Annotator "TA"]
[PlyCount "67"]
[EventDate "2022.11.17"]
[EventType "tourn"]
[EventCountry "ITA"]
[SourceTitle "playchess.com"]
[Source "ChessBase"]
[SourceQuality "1"]
[TimeControl "40/6000+30:20/3000:900+30"]

{[%evp 11,67,7,8,6,0,14,7,0,0,0,4,0,15,0,0,0,13,4,0,0,0,0,0,0,10,-9,0,-1,0,-22,21,0,23,16,39,31,39,47,59,51,55,19,25,30,25,21,18,26,25,20,31,28,23,0,0,0,0,-26]} 1. e4 {[%emt 0:01:33]} c5 {[%emt 0:00:35]} 2. Nf3 {[%emt 0:00:32]} d6 {[%emt 0:00:04]} 3. Bb5+ {[%emt 0:00:28]} Nd7 {[%emt 0:00:09]} 4. d4 {[%emt 0:01:15]} cxd4 {[%emt 0:00:14]} 5. Qxd4 {[%emt 0:00:24]} a6 {[%emt 0:00:10]} 6. Bxd7+ {[%emt 0:00:37]} Bxd7 {[%emt 0:00:04]} 7. c4 {[%emt 0:00:43] B51: Sicilian: Moscow Variation (3 Bb5+) without 3...Bd7.} Nf6 {[%emt 0:00:09]} 8. Bg5 {[%emt 0:00:46]} e6 {[%emt 0:00:06]} 9. Nc3 {[%emt 0:01:07]} h6 {[%emt 0:00:08]} 10. Bh4 {[%emt 0:15:31]} Be7 {[%emt 0:00:29]} 11. O-O {[%emt 0:00:21]} O-O {[%emt 0:01:33]} (11... Rc8 {is more complex.} 12. e5 dxe5 13. Nxe5 Bc6) 12. Rfd1 {[%emt 0:16:43]} Bc6 {[%emt 0:01:20]} 13. Qd3 {[%emt 0:08:29]} Rc8 {[%emt 0:09:57]} 14. Nd4 {[%emt 0:02:47]} Qa5 {[%emt 0:03:55]} 15. Rac1 {[%emt 0:19:14]} Rfd8 {[%emt 0:02:47]} 16. b3 {[%emt 0:15:10]} Qh5 {[%emt 0:04:32]} 17. Bg3 {[%emt 0:00:09] [#]} Qa5 $146 {[%emt 0:01:13]} ({Predecessor:} 17... Qg5 18. Nxc6 Rxc6 19. f4 Qa5 20. Qf3 Qh5 21. Bf2 {½-½ (21) Bao,Q (2253)-Xu,Y (2454) Zhongshan 2015}) 18. Bh4 {[%emt 0:00:18]} Qh5 {[%emt 0:01:19]} 19. Bg3 {[%emt 0:02:23]} Qg6 {[%emt 0:00:30][%cal Rc6e4]} 20. Nxc6 {[%emt 0:12:41]} Rxc6 {[%emt 0:00:34]} 21. a4 {[%emt 0:03:08]} Nd7 {[%emt 0:07:08]} 22. Qe2 {[%emt 0:02:16]} Ne5 {[%emt 0:02:49]} 23. f4 {[%emt 0:01:18]} Ng4 {[%emt 0:03:39]} 24. h3 {[%emt 0:00:44]} Nf6 {[%emt 0:00:10]} 25. Bh4 {[%emt 0:00:27]} Re8 {[%emt 0:02:25][%cal Of6e4]} 26. Bxf6 {[%emt 0:03:52]} (26. e5 {is interesting.} dxe5 27. fxe5 Bc5+ 28. Kh2) 26... Qxf6 {[%emt 0:01:52]} 27. Qf3 {[%emt 0:00:18]} Bd8 {[%emt 0:00:33][%cal Be7d8,Bd8b6,Bb6c5][%mdl 32]} 28. Rd3 {[%emt 0:00:30]} Bb6+ {[%emt 0:00:59]} 29. Kh1 {[%emt 0:00:04]} Bc5 {[%emt 0:01:08]} 30. Rcd1 {[%emt 0:00:09]} Rcc8 {[%emt 0:02:36]} 31. Ne2 {[%emt 0:01:02]} Rb8 {[%emt 0:01:45]} 32. Rb1 {[%emt 0:00:28]} b5 {[%emt 0:01:23]} 33. cxb5 {[%emt 0:00:54]} axb5 {[%emt 0:00:04]} 34. axb5 {[%emt 0:00:00][%mdl 32768] Weighted Error Value: White=0.06 (flawless) /Black=0.06 (flawless) . Loss on time!?} 0-1

[Event "Italian-ch Women 2022"]
[Site "Cagliari"]
[Date "2022.11.19"]
[Round "3.4"]
[White "Maione, Melissa"]
[Black "Cassi, Elisa"]
[Result "1-0"]
[ECO "C92"]
[WhiteElo "1928"]
[BlackElo "1995"]
[Annotator "TA"]
[PlyCount "63"]
[EventDate "2022.11.17"]
[EventType "tourn"]
[EventCountry "ITA"]
[SourceTitle "playchess.com"]
[Source "ChessBase"]
[SourceQuality "1"]
[TimeControl "40/6000+30:20/3000:900+30"]

{[%evp 19,63,40,41,43,49,32,34,28,28,40,40,48,31,27,37,12,39,0,0,0,26,29,127,118,417,286,276,279,543,523,519,516,579,595,1197,1187,1100,540,1170,283,318,311,806,803,763,739]} 1. e4 {[%emt 0:00:03]} e5 {[%emt 0:00:05]} 2. Nf3 {[%emt 0:00:15]} Nc6 {[%emt 0:00:07]} 3. Bb5 {[%emt 0:00:12]} a6 {[%emt 0:00:05]} 4. Ba4 {[%emt 0:00:08]} Nf6 {[%emt 0:00:06]} 5. O-O {[%emt 0:00:17]} Be7 {[%emt 0:00:05]} 6. Re1 {[%emt 0:00:10]} b5 {[%emt 0:00:06]} 7. Bb3 {[%emt 0:00:09]} d6 {[%emt 0:00:09]} 8. c3 {[%emt 0:00:20]} O-O {[%emt 0:00:14]} 9. h3 {[%emt 0:00:28]} a5 {[%emt 0:00:09]} 10. d4 {[%emt 0:09:28]} Bd7 {[%emt 0:00:17]} 11. a4 {[%emt 0:04:41] [#] C92: Closed Ruy Lopez: 9...Be6, Karpov and Flohr-Zaitsev Variations.} bxa4 $146 {[%emt 0:00:17]} ({Predecessor:} 11... b4 12. Nbd2 bxc3 13. bxc3 exd4 14. Nxd4 Qc8 15. Nc4 Nxd4 16. cxd4 d5 17. exd5 Nxd5 18. Nb6 cxb6 19. Bxd5 {½-½ (36) Palacio,E (1959)-Diaz Hollemaert,N (2435) Montevideo 2022}) 12. Bxa4 {[%emt 0:00:54]} exd4 {[%emt 1:44:50]} 13. cxd4 {[%emt 0:07:23] White is slightly better.} Nb4 {[%emt 0:00:00]} 14. Nc3 {[%emt 0:01:58][%cal Bb1c3,Bc3b5,Bb5c7][%mdl 32]} Bxa4 {[%emt 0:00:00]} 15. Rxa4 {[%emt 0:02:16]} Nd7 {[%emt 0:00:00]} 16. Bf4 {[%emt 0:09:37]} Re8 {[%emt 0:00:00]} 17. Qe2 {[%emt 0:05:11]} c5 {[%emt 0:00:00]} 18. Nb5 {[%emt 0:05:35]} Qb6 {[%emt 0:00:00]} 19. Rea1 {[%emt 0:09:26]} cxd4 {[%emt 0:00:00]} 20. Nfxd4 {[%emt 0:02:08] aiming for Nf5.} Bf6 {[%emt 0:04:00] [#]} (20... Nc5 $11 {keeps the balance.}) 21. Nf5 $1 $16 {[%emt 0:50:21]} d5 {[%emt 0:00:30][%mdl 8192] A mistake that costs the game.} (21... Be5 $16 {was necessary.}) 22. Nc7 {[%emt 0:00:30]} Rxe4 {[%emt 0:00:30]} 23. Nxa8 {[%emt 0:00:30] Dancing on a razor blade.} Qc6 {[%emt 0:00:30]} (23... Rxe2 24. Nxb6 Nxb6) (23... Rxe2 24. Nxb6 Nxb6) 24. Qd2 $18 {[%emt 0:00:30]} Nc5 {[%emt 0:00:30]} 25. R4a3 {[%emt 0:00:30][%cal Ba4a3,Ba3a5,Ba5d5,Bd5c5][%mdl 32]} ({Weaker is} 25. Rxa5 Nb3 $14) 25... Ne6 {[%emt 0:00:30]} 26. Bd6 {[%emt 0:00:30]} Qxa8 {[%emt 0:00:30]} 27. Rxa5 {[%emt 0:00:30]} Qb7 {[%emt 0:00:30]} 28. Bxb4 {[%emt 0:00:30]} (28. Ra8+ $142 Bd8 29. Rb8) 28... Rxb4 {[%emt 0:00:30]} 29. Qxd5 $2 {[%emt 0:00:30]} (29. Ra8+ Nd8 30. R1a7 Rxb2 31. Qf4) 29... Qxd5 {[%emt 0:00:00]} 30. Rxd5 {[%emt 0:00:30] [#] And now Ra8+ would win.} Rxb2 $2 {[%emt 0:01:00]} (30... h6 31. Ra8+ Kh7) 31. Ra8+ {[%emt 0:00:00]} Nf8 {[%emt 0:00:30]} 32. Rc5 {[%emt 0:01:00] Weighted Error Value: White=0.79/Black=0.70} 1-0

[Event "Italian-ch Women 2022"]
[Site "Cagliari"]
[Date "2022.11.20"]
[Round "4.1"]
[White "Zimina, Olga"]
[Black "Cassi, Elisa"]
[Result "1-0"]
[ECO "A07"]
[WhiteElo "2283"]
[BlackElo "1995"]
[Annotator "TA"]
[PlyCount "63"]
[EventDate "2022.11.17"]
[EventType "tourn"]
[EventCountry "ITA"]
[SourceTitle "playchess.com"]
[Source "ChessBase"]
[SourceQuality "1"]
[TimeControl "40/6000+30:20/3000:900+30"]

{[%evp 16,63,20,22,22,16,36,0,0,0,34,-8,17,0,0,0,0,-7,0,-42,-7,-13,47,13,14,0,52,33,43,-27,0,-34,94,55,103,100,106,97,94,99,105,104,29989,1421,29990,29991,29991,29992,29997,29998]} 1. Nf3 {[%emt 0:02:00]} d5 {[%emt 0:00:09]} 2. g3 {[%emt 0:00:06]} Nf6 {[%emt 0:00:31]} 3. Bg2 {[%emt 0:00:05]} e6 {[%emt 0:01:41]} 4. O-O {[%emt 0:00:16]} Be7 {[%emt 0:00:49]} 5. d3 {[%emt 0:01:05]} O-O {[%emt 0:00:16]} 6. Nbd2 {[%emt 0:00:03]} Nbd7 {[%emt 0:03:09]} 7. e4 {[%emt 0:07:34]} dxe4 {[%emt 0:01:29]} 8. dxe4 {[%emt 0:00:16]} e5 {[%emt 0:02:59]} 9. Qe2 {[%emt 0:03:41]} Bc5 {[%emt 0:01:15] [#] A07: Réti Opening: New York and Capablanca Systems.} 10. Nh4 $146 {[%emt 0:03:47]} ({Predecessor:} 10. Nc4 Qe7 11. a4 b6 12. Nh4 Ba6 13. Bh3 Ne8 14. Nf5 Qf6 15. c3 Qc6 16. b3 Ndf6 17. Re1 {1-0 (34) Rodic Kures,G (2070)-Gackic,B (1835) Arandjelovac 1981}) 10... Re8 {[%emt 0:02:34]} 11. Nb3 {[%emt 0:02:45]} Bf8 {[%emt 0:04:45] The position is equal.} 12. Nf5 {[%emt 0:05:13]} c6 {[%emt 0:01:25]} 13. Bg5 {[%emt 0:02:02]} a5 {[%emt 0:03:58]} 14. a4 {[%emt 0:00:28][%cal Ba2a4,Ba4a5][%mdl 32]} h6 {[%emt 0:01:14]} 15. Be3 {[%emt 0:04:29]} Qc7 {[%emt 0:02:46]} 16. g4 {[%emt 0:16:54]} Nb6 {[%emt 0:04:06]} 17. Bd2 {[%emt 0:13:35]} Bb4 {[%emt 0:15:52]} 18. Bxb4 {[%emt 0:06:55]} axb4 {[%emt 0:00:07]} (18... Bxf5 $11 19. Bxa5 Bxg4) 19. a5 $14 {[%emt 0:00:34]} Nbd7 {[%emt 0:00:25]} (19... Bxf5 $2 20. axb6 Bxg4 21. Qxg4 Qxb6 22. Qe2 $18) 20. h3 {[%emt 0:05:33]} (20. Rfd1 {simplifies} Nf8 21. Qd2 Bxf5 22. gxf5 c5 23. Qd6) 20... Nf8 {[%emt 0:03:58]} (20... Nb8 $11) 21. Qc4 $1 {[%emt 0:00:42]} g6 {[%emt 0:22:56]} 22. Nxh6+ {[%emt 0:06:42]} (22. Ne3 $14) 22... Kg7 $11 {[%emt 0:00:05]} 23. f4 {[%emt 0:03:06]} (23. Nf5+ $5 gxf5 24. exf5 $11) 23... exf4 {[%emt 0:05:55] [#]} (23... Kxh6 24. g5+ (24. Qxb4 $2 exf4 25. e5 N6h7 $17) 24... Kh7 25. gxf6 exf4 26. Qxb4 $11) (23... Be6 24. Qxb4 exf4 25. g5 $14) (23... N8h7 $15 {stays ahead.}) 24. e5 $1 $36 {[%emt 0:09:31][%mdl 2048] White is more active.} Qxe5 {[%emt 0:05:13]} (24... Ng8 $1 $14 {should be considered.}) 25. Qxf7+ {[%emt 0:00:52]} (25. Nxf7 $2 Qe3+ 26. Kh2 (26. Kh1 $2 Be6 $19) 26... Qg3+ 27. Kh1 Be6 28. Qxf4 (28. Qd4 $2 Bd5 $19) 28... Qxf4 29. Rxf4 Bxf7 $19) ({Don't play} 25. Qxf4 Qxf4 26. Rxf4 N8h7 $15) 25... Kxh6 {[%emt 0:00:17] [#]} 26. Rae1 {[%emt 0:00:12][%mdl 64] Inhibits Qe3+. Skewer, Deflection} Qd6 {[%emt 0:02:20] Hoping for ...Rxe1.} 27. Rxe8 {[%emt 0:02:05] Really sharp! White is much more active.} Nxe8 {[%emt 0:03:00]} 28. Qxe8 {[%emt 0:00:53][%cal Ob3d2] Threatens to win with Nd2!} Ne6 $2 {[%emt 0:04:31][%mdl 8192] This costs Black the game.} (28... Kg7 $16) 29. Qh8+ {[%emt 0:00:24]} Kg5 {[%emt 0:00:03]} 30. Bf3 {[%emt 0:00:16][%csl Gh8][%cal Rh3h4] White mates.} Ng7 {[%emt 0:04:02]} 31. Qxg7 {[%emt 0:00:06]} Be6 {[%emt 0:02:08]} 32. h4+ {[%emt 0:00:17] Weighted Error Value: White=0.12 (very precise) /Black=0.51} 1-0

[Event "Italian-ch Women 2022"]
[Site "Cagliari"]
[Date "2022.11.20"]
[Round "4.2"]
[White "Brunello, Marina"]
[Black "Maione, Melissa"]
[Result "1-0"]
[ECO "B76"]
[WhiteElo "2337"]
[BlackElo "1928"]
[Annotator "TA"]
[PlyCount "104"]
[EventDate "2022.11.17"]
[EventType "tourn"]
[EventCountry "ITA"]
[SourceTitle "playchess.com"]
[Source "ChessBase"]
[SourceQuality "1"]
[TimeControl "40/6000+30:20/3000:900+30"]

{[%evp 29,104,40,32,27,25,0,0,0,0,0,0,-11,0,0,0,0,0,0,0,0,0,0,0,0,10,0,15,0,0,0,0,0,0,0,120,77,440,443,435,404,408,420,683,487,484,579,659,648,630,593,657,602,642,0,403,373,325,0,0,0,0,0,125,0,583,585,431,207,306,286,804,773,746,724,1119,1135,1033]} 1. e4 {[%emt 0:00:03]} c5 {[%emt 0:00:06]} 2. Nf3 {[%emt 0:00:05]} d6 {[%emt 0:00:10]} 3. d4 {[%emt 0:00:10]} cxd4 {[%emt 0:00:11]} 4. Nxd4 {[%emt 0:00:04]} Nf6 {[%emt 0:00:12]} 5. Nc3 {[%emt 0:00:06]} g6 {[%emt 0:00:10]} 6. Be3 {[%emt 0:00:09]} Bg7 {[%emt 0:00:12]} 7. f3 {[%emt 0:00:05]} O-O {[%emt 0:00:11]} 8. Qd2 {[%emt 0:00:07]} Nc6 {[%emt 0:00:13]} 9. O-O-O {[%emt 0:00:23]} d5 {[%emt 0:00:20]} 10. exd5 {[%emt 0:00:24]} Nxd5 {[%emt 0:00:27]} 11. Nxc6 {[%emt 0:00:05]} bxc6 {[%emt 0:00:08]} 12. Bd4 {[%emt 0:00:04]} Nxc3 {[%emt 0:00:40]} 13. Qxc3 {[%emt 0:01:42]} Bh6+ {[%emt 0:00:24]} 14. Be3 {[%emt 0:00:38]} Bxe3+ {[%emt 0:00:18]} 15. Qxe3 {[%emt 0:00:04]} Qb6 {[%emt 0:00:28]} 16. Qc3 {[%emt 0:08:07] B76: Sicilian Dragon: Yugoslav Attack, 9 g4 and 9 0-0-0.} Be6 {[%emt 0:00:55]} 17. Bc4 {[%emt 1:36:44]} Bxc4 {[%emt 0:04:14]} 18. Qxc4 {[%emt 0:00:04] The position is equal.} Rfd8 {[%emt 0:01:49]} 19. Qe2 {[%emt 0:17:05] Inhibits Qe3+.} e6 {[%emt 0:07:36] [#]} 20. g4 $146 {[%emt 0:02:43]} ({Predecessor:} 20. h4 Rxd1+ 21. Rxd1 Rd8 22. Rxd8+ Qxd8 23. Qf2 Qf6 24. Qxa7 Qxh4 25. Qb8+ Kg7 26. Qe5+ {0-1 (61) Moeldner,J (2248)-Hacker,J (2357) Germany 2015}) 20... Qa5 {[%emt 0:20:11]} 21. Kb1 {[%emt 1:10:40]} Rxd1+ {[%emt 0:08:28]} 22. Rxd1 $11 {[%emt 0:00:11][%mdl 4096] Endgame KQR-KQR} Rd8 {[%emt 0:00:18]} 23. c3 {[%emt 0:09:30]} Rd5 {[%emt 0:08:59]} 24. Rxd5 {[%emt 0:15:04]} Qxd5 {[%emt 0:02:03] KQ-KQ} 25. a4 {[%emt 0:00:23]} Qd6 {[%emt 0:03:09]} 26. Kc2 {[%emt 0:02:51]} Qf4 {[%emt 0:03:54]} 27. b4 {[%emt 0:05:25]} h5 {[%emt 0:06:21]} 28. h3 {[%emt 0:14:05]} h4 {[%emt 0:03:23]} 29. Kb3 {[%emt 0:01:46]} Qg3 {[%emt 0:05:43]} 30. Qf1 {[%emt 0:00:05]} Qe5 {[%emt 0:01:45]} 31. b5 {[%emt 0:07:56]} c5 {[%emt 0:02:41]} (31... Qd5+ $11 32. c4 Qd2) 32. Qd3 $1 $16 {[%emt 0:02:58] aiming for a5.} Qg3 $2 {[%emt 0:05:43][%mdl 8192]} (32... Qc7 $16 {is a better chance.}) 33. a5 $1 $18 {[%emt 0:00:10][%cal Ba4a5,Ba5a6][%mdl 32]} Qc7 {[%emt 0:02:42]} (33... Qxh3 $2 34. b6 axb6 35. axb6 c4+ 36. Qxc4 (36. Kxc4 Qh2 $16) 36... Qxf3 37. Qc8+ Kg7 38. b7 Qd1+ 39. Kb4 Qd6+ 40. Kb5 Qd5+ 41. Kb6 Qd6+ 42. Qc6) 34. a6 {[%emt 0:00:28]} Kf8 {[%emt 0:03:41]} 35. Kc4 {[%emt 0:00:38]} Ke8 {[%emt 0:04:58]} (35... Kg8 $142 36. Qe3 Qa5) 36. Qe3 {[%emt 0:00:37]} Qa5 {[%emt 0:00:11]} 37. Qe5 {[%emt 0:01:42] Threatens to win with Qb8+.} Kd7 {[%emt 0:02:54]} 38. Kxc5 {[%emt 0:01:16]} Qa3+ {[%emt 0:00:15]} 39. Kd4 {[%emt 0:00:27]} Qa4+ {[%emt 0:00:17]} 40. Ke3 {[%emt 0:00:30]} Qa1 {[%emt 0:01:54]} 41. Kd2 $2 {[%emt 0:16:31]} (41. Qd4+ $18 Ke8 42. Kf4) 41... Qb2+ $2 {[%emt 0:00:00][%mdl 8192]} (41... Qa2+ $1 $11 {and Black has nothing to worry.} 42. Ke3 Qb1) 42. Kd3 $1 {[%emt 0:43:41] And now Qd4+ would win.} Qb1+ {[%emt 0:00:00] [#]} 43. Kc4 $2 {[%emt 0:00:18]} (43. Kd4 $1 $18 {[%cal Rd4c5]} f6 44. Qxf6 Qxb5 45. Qxg6 Qb6+ 46. Ke5 Qd6+ 47. Ke4 Qxa6 48. Qf7+ Kd6 49. Qf4+ Kd7 50. Qf7+ Kd6 51. Qf8+ Kd7 52. Qf7+) 43... Qa2+ $1 $11 {[%emt 0:00:00]} (43... Qf1+ 44. Kc5 Qxf3 45. Qd4+ Kc7 46. Qd6+ Kc8 47. Qc6+ Qxc6+ 48. Kxc6 $18) 44. Kc5 {[%emt 0:00:43]} Qa3+ {[%emt 0:00:00]} 45. Kd4 {[%emt 0:00:00]} (45. Kc4 $11 Qa4+ 46. Kc5 Qa3+) 45... Qa4+ $1 $16 {[%emt 0:00:00] [#]} 46. Ke3 $2 {[%emt 0:00:00][%mdl 8192] White is more active.} (46. Kd3 $1 $16 {Strongly threatening Qd4+.} Qd1+ 47. Kc4 Qa4+ 48. Kc5 Qa3+) 46... Qa1 $1 $18 {[%emt 0:00:00]} 47. Qd4+ {[%emt 0:00:00]} Ke8 {[%emt 0:00:00]} 48. Qd2 {[%emt 0:04:20] Against Qe1+} (48. Kf4 $142) 48... Qg1+ {[%emt 0:00:28]} (48... Qa4 {was necessary.} 49. Qd3 Qa1) 49. Kd3 {[%emt 0:00:55] Hoping for Kc4.} Qb1+ $2 {[%emt 0:00:00]} (49... Qc5 50. c4 e5) 50. Kc4 {[%emt 0:00:00] White is clearly winning.} Qf1+ {[%emt 0:00:32]} 51. Kb4 {[%emt 0:12:06]} Qb1+ {[%emt 0:05:45]} 52. Kc5 {[%emt 0:00:07]} Qa1 {[%emt 0:00:00] Weighted Error Value: White=0.38/Black=0.46} 1-0

[Event "Italian-ch Women 2022"]
[Site "Cagliari"]
[Date "2022.11.20"]
[Round "4.3"]
[White "Gabbani, Sara"]
[Black "Sedina, Elena"]
[Result "1/2-1/2"]
[ECO "C54"]
[WhiteElo "1844"]
[BlackElo "2197"]
[Annotator "TA"]
[PlyCount "97"]
[EventDate "2022.11.17"]
[EventType "tourn"]
[EventCountry "ITA"]
[SourceTitle "playchess.com"]
[Source "ChessBase"]
[SourceQuality "1"]
[TimeControl "40/6000+30:20/3000:900+30"]

{[%evp 17,97,0,6,-6,6,0,4,7,0,-4,12,0,0,0,0,-5,0,-8,0,0,0,-9,0,-10,-13,-17,-17,-15,-16,-16,-16,-21,-22,-26,-20,-24,0,0,0,0,-1,-6,-6,-11,0,-4,0,-4,0,0,0,0,0,0,0,0,0,0,0,0,0,0,0,0,0,0,0,0,0,0,0,0,0,0,0,0,0,0,0,0,0,0]} 1. e4 {[%emt 0:00:07]} e5 {[%emt 0:01:01]} 2. Nf3 {[%emt 0:00:07]} Nc6 {[%emt 0:00:11]} 3. Bc4 {[%emt 0:00:08]} Bc5 {[%emt 0:00:36]} 4. c3 {[%emt 0:01:23]} Nf6 {[%emt 0:00:17]} 5. d3 {[%emt 0:00:15]} a6 {[%emt 0:00:47]} 6. Bb3 {[%emt 0:00:11]} d6 {[%emt 0:02:08]} 7. Nbd2 {[%emt 0:02:00][%cal Bb1d2,Bd2c4,Bc4e3,Be3f5][%mdl 32]} Ba7 {[%emt 0:00:52]} 8. O-O {[%emt 0:02:45]} h6 $1 {[%emt 0:02:24][%mdl 4] now scores much better than the old 8...0-0.} 9. Nc4 {[%emt 0:06:30]} O-O {[%emt 0:19:05]} 10. h3 {[%emt 0:06:18] was the old line (10.Ne3). C54: Giuoco Piano: 4 c3 Nf6, main lines with 5 d4 and 5 d3.} Be6 {[%emt 0:05:31]} 11. Re1 {[%emt 0:10:03]} Re8 {[%emt 0:05:13]} 12. Ne3 {[%emt 0:15:56]} Qd7 {[%emt 0:14:07] was the old line (12...d5).} 13. Bxe6 {[%emt 0:06:21] [#]} Rxe6 $146 {[%emt 0:09:26]} ({Predecessor:} 13... fxe6 14. Ng4 Nxg4 15. hxg4 Qf7 16. g5 hxg5 17. Bxg5 Rf8 18. Be3 Bxe3 19. Rxe3 Ne7 {0-1 (27) Leite Oralova,C (2134)-Balajayeva,K (2348) Stary Smokovec 2018}) 14. Nf5 {[%emt 0:07:47]} d5 {[%emt 0:05:17]} 15. Be3 {[%emt 0:01:30]} Bxe3 {[%emt 0:09:45]} 16. Rxe3 {[%emt 0:00:27]} Rd8 {[%emt 0:02:59] White should prevent ...dxe4.} 17. Qc2 {[%emt 0:04:59]} Kh7 {[%emt 0:02:43]} 18. Ree1 {[%emt 0:05:14]} g6 {[%emt 0:00:36]} 19. Ng3 {[%emt 0:01:05]} Kg7 {[%emt 0:03:58]} 20. Rad1 {[%emt 0:02:35]} Rd6 {[%emt 0:14:10]} 21. d4 {[%emt 0:12:19]} dxe4 {[%emt 0:01:44]} 22. Nxe4 {[%emt 0:00:12]} Nxe4 {[%emt 0:02:23]} 23. Rxe4 {[%emt 0:00:56]} Qf5 {[%emt 0:01:51]} 24. Qe2 {[%emt 0:01:55]} exd4 {[%emt 0:00:04]} 25. Nxd4 {[%emt 0:00:19]} Qc5 {[%emt 0:02:53][%cal Rc6d4]} 26. Qe3 {[%emt 0:02:58]} Nxd4 {[%emt 0:00:05]} (26... Qg5 {seems wilder.} 27. Qe1 R8d7 28. a4 Nxd4 29. Rexd4 Rxd4 30. Rxd4 Rxd4 31. cxd4 h5) 27. Rexd4 {[%emt 0:00:18] The position is equal.} Rxd4 {[%emt 0:00:19]} 28. Rxd4 {[%emt 0:00:08]} Rxd4 {[%emt 0:00:34]} 29. cxd4 $11 {[%emt 0:00:31][%mdl 4096] Endgame KQ-KQ} Qd5 {[%emt 0:00:07]} 30. a3 {[%emt 0:01:43]} a5 {[%emt 0:00:32]} 31. a4 {[%emt 0:03:38]} c6 {[%emt 0:00:36]} 32. Qc3 {[%emt 0:00:43]} h5 {[%emt 0:01:43]} 33. h4 {[%emt 0:01:36]} Kg8 {[%emt 0:00:31]} 34. g3 {[%emt 0:01:26]} b6 {[%emt 0:00:37]} 35. Kh2 {[%emt 0:03:50]} Kf8 {[%emt 0:00:16]} 36. Qe3 {[%emt 0:01:06]} b5 {[%emt 0:01:33]} 37. Kg1 {[%emt 0:03:13]} Qa2 {[%emt 0:01:23]} 38. axb5 {[%emt 0:01:09]} cxb5 {[%emt 0:00:13]} 39. Qd2 {[%emt 0:01:12]} b4 {[%emt 0:00:52]} 40. d5 {[%emt 0:00:39]} Ke7 {[%emt 0:00:24]} 41. Qd4 {[%emt 0:50:33]} Kd7 {[%emt 0:20:51]} 42. Qc5 {[%emt 0:00:00]} Qxb2 {[%emt 0:12:00]} 43. Qc6+ {[%emt 0:00:00]} Kd8 {[%emt 0:00:04]} 44. d6 {[%emt 0:00:00] [#] White threatens Qc7+ and mate.} Qc3 {[%emt 0:00:14]} 45. Qb7 {[%emt 0:00:00] White wants to mate with Qe7+.} Qe1+ {[%emt 0:00:00]} 46. Kg2 {[%emt 0:00:00] Threatening mate with Qc7+.} Qe6 {[%emt 0:00:00]} 47. Qc7+ {[%emt 0:00:00]} Ke8 {[%emt 0:00:00]} 48. Qb8+ {[%emt 0:00:00]} Kd7 {[%emt 0:00:00]} 49. Qc7+ {[%emt 0:00:00] An interesting draw.  Weighted Error Value: White=0.02 (flawless) /Black=0.03 (flawless)} 1/2-1/2